Cogmind - Beta 14 @@@ ROGUE MODE // 2024.12.12 @ 13:14:37 Player: AshCrow Result: Self-destructed Performance ------------- Evolutions (0) 0 Regions Visited (4) 800 Robots Destroyed (9) 45 Value Destroyed (310) 310 Prototype IDs (4) 80 Alien Tech Used (0) 0 Bonus (300) 300 TOTAL SCORE: 1535 Bonus ------- Registered with UFD 300 Cogmind --------- Core Integrity 175/250 Matter 298/300 Energy 170/170 System Corruption 0% Temperature Cool (0) Movement Treading (165) Location -7/Scraptown Parts ------- > --- POWER (1) -------- Makeshift Power Source > --- PROPULSION (2) --- Improved Treads Armored Treads > --- UTILITY (2) ------ Small Storage Unit A0-MCA's Component Scanner > --- WEAPON (2) ------- Heavy Battle Rifle > --- INVENTORY (8) ---- Ion Engine Light Assault Rifle Battle Rifle Minigun Advanced Assault Cannon Heavy Missile Launcher Scrap Shield Fragment (47) DRS Beacon (Ready) Peak State ------------ > --- POWER ------------ Makeshift Power Source > --- PROPULSION ------- Improved Treads Armored Treads > --- UTILITY ---------- Small Storage Unit A0-MCA's Component Scanner > --- WEAPON ----------- Heavy Battle Rifle Advanced Assault Cannon > --- INVENTORY -------- Ion Engine Ion Engine Light Assault Rifle Battle Rifle Minigun Heavy Missile Launcher Scrap Shield Fragment DRS Beacon [Rating: 29] Favorites ----------- Power Makeshift Power Source Engine Makeshift Power Source Propulsion Light Treads Treads Light Treads Utility Small Storage Unit Device Subdweller Optics Storage Small Storage Unit Processor A0-MCA's Component Scanner Protection Weapon Shielding Weapon Battle Rifle Ballistic Gun Battle Rifle Ballistic Cannon Advanced Assault Cannon Special Weapon Plasma Cutter Build | -11 -10 -10 -7 -7 ------- Run | Yrd Mat Sub Rec Scr Slots Evolved . | . . . . . Power . | . . . . . Propulsion . | . . . . . Utility . | . . . . . Weapon . | . . . . . Parts Attached 20 | 6 1 6 . 7 Power 4 | 1 . 2 . 1 Engine 4 | 1 . 2 . 1 Core . | . . . . . Reactor . | . . . . . Propulsion 4 | 2 . . . 2 Treads 4 | 2 . . . 2 Leg . | . . . . . Wheel . | . . . . . Hover . | . . . . . Flight . | . . . . . Utility 5 | 1 1 2 . 1 Device 2 | . . 2 . . Storage 1 | 1 . . . . Processor 1 | . . . . 1 Hackware . | . . . . . Protection 1 | . 1 . . . Artifact . | . . . . . Weapon 7 | 2 . 2 . 3 Energy Gun . | . . . . . Energy Cannon . | . . . . . Ballistic Gun 5 | 2 . 2 . 1 Ballistic Cannon 1 | . . . . 1 Launcher . | . . . . . Special Weapon 1 | . . . . 1 Impact Weapon . | . . . . . Slashing Weapon . | . . . . . Piercing Weapon . | . . . . . Special Melee Weapon . | . . . . . Unidentified Prototypes . | . . . . . Parts Lost 2 | . . 1 . 1 Power . | . . . . . Propulsion . | . . . . . Utility 1 | . . 1 . . Weapon 1 | . . . . 1 Highest Loss Streak 1 | . . 1 . 1 To Critical Strikes . | . . . . . Average Slot Usage (%) 99 | . 99 99 100 100 Engine 14 | . 14 14 14 14 Treads 28 | . 28 28 28 28 Device 2 | . . 6 14 1 Storage 14 | . 14 14 14 14 Processor 7 | . . . . 12 Protection 3 | . 13 6 . . Ballistic Gun 25 | . 28 28 28 23 Ballistic Cannon 2 | . . . . 3 Peak Build Rating 29 | 6 7 12 12 29 Average Rating 16 | 4 6 8 12 22 On Entrance 7 | . 6 7 12 12 Naked Turns . | . . . . . Heaviest Build 19 | 13 14 18 18 19 Greatest Support 43 | 40 40 40 40 43 Greatest Overweight (x) . | . . . . . Average Overweight (x) . | . . . . . Largest Inventory Capacity 8 | 8 8 8 8 8 Average Capacity 7 | 7 8 8 8 8 Most Carried 8 | 2 3 8 8 8 Average Carried 6 | . 2 4 7 7 Final Capacity 8 | 8 8 8 8 8 Final Carried 8 | 2 2 8 8 8 Class Distribution -------------------- 100% | Mutant Dominant Class ---------------- Mutant | -10/Materials Mutant | -10/Subcaves Mutant | -7/Recycling Mutant | -7/Scraptown Resources | -11 -10 -10 -7 -7 ----------- Run | Yrd Mat Sub Rec Scr Matter Collected 519 | 253 . 208 . 58 Remotely . | . . . . . Salvage Created 308 | . . 308 . . Parts 17 | . . 17 . . Haulers Intercepted . | . . . . . Recyclers Shooed . | . . . . . Parts Field Recycled . | . . . . . Retrieved Matter . | . . . . . Parts Self-Destructed 5 | . . 5 . . Prevented . | . . . . . Kills | -11 -10 -10 -7 -7 ------- Run | Yrd Mat Sub Rec Scr Combat Hostiles Destroyed 7 | . . 7 . . Guns 7 | . . 7 . . Classes Destroyed 3 | . . 3 . . Turret 2 | . . 2 . . Swarmer 1 | . . 1 . . Subdweller 6 | . . 6 . . Best Kill Streak 3 | . . 3 . . Combat Bots Only 3 | . . 3 . . Max Kills in Single Turn 1 | . . 1 . . Gunslinging . | . . . . . Exploded . | . . . . . Melee . | . . . . . Uniques/NPCs Destroyed . | . . . . . Combat | -11 -10 -10 -7 -7 -------- Run | Yrd Mat Sub Rec Scr Hostile Shots Fired 71 | . . 58 . 13 Missed 27 | . . 25 . 2 Damage Taken 797 | . . 548 . 249 Core 75 | . . 49 . 26 Absorbed by Shields . | . . . . . Redirected to Shielding 50 | . . 50 . . Core Remaining (%) 100 | 100 . . . . Volleys Fired 37 | . . 31 . 6 Largest 2 | . . 2 . 1 Hottest 55 | . . 55 . 20 Shots Fired 68 | . . 62 . 6 Gun 62 | . . 62 . . Cannon . | . . . . . Launcher . | . . . . . Special 6 | . . . . 6 Kinetic 62 | . . 62 . . Thermal 6 | . . . . 6 Explosive . | . . . . . Electromagnetic . | . . . . . Robot Hit Streak 11 | . . 11 . . Robot Miss Streak 2 | . . 2 . . Penetration Max . | . . . . . Secondary Targets 1 | . . 1 . . Max Gunslinging Chain 1 | . . 1 . . Shots Hit Robots 49 | . . 49 . . Core Hits 19 | . . 19 . . Critical Kills . | . . . . . Critical Parts Destroyed 1 | . . 1 . . Critical Strikes 2 | . . 2 . . Destroy 2 | . . 2 . . Melee Attacks . | . . . . . Impact . | . . . . . Slashing . | . . . . . Piercing . | . . . . . Sneak Attacks . | . . . . . Combat Hostiles . | . . . . . Follow-up Attacks . | . . . . . Damage Inflicted 586 | . . 583 . 3 Guns 583 | . . 583 . . Cannons . | . . . . . Explosions . | . . . . . Melee . | . . . . . Ramming 3 | . . . . 3 Kinetic 583 | . . 583 . . Thermal . | . . . . . Explosive . | . . . . . Electromagnetic . | . . . . . Impact . | . . . . . Slashing . | . . . . . Piercing . | . . . . . Highest Corruption . | . . . . . Average Corruption . | . . . . . Corruption Purged . | . . . . . Corruption Blocked . | . . . . . Overload Shots . | . . . . . Overflow Damage . | . . . . . Projectiles . | . . . . . Explosions . | . . . . . Melee . | . . . . . Knockbacks . | . . . . . Impact . | . . . . . Kinetic . | . . . . . Secondary . | . . . . . Self-Inflicted Damage . | . . . . . Shots . | . . . . . Rammed 1 | . . . . 1 Targets Rammed 1 | . . . . 1 Kicked . | . . . . . Crushed . | . . . . . Highest Temperature 1 | . . 1 . . Average Temperature 1 | . . 1 . . Received Heat Transfer 60 | . . 60 . . Siege Activations . | . . . . . Robots Corrupted . | . . . . . Combat Hostiles . | . . . . . Parts Fried . | . . . . . Impact Corruptions . | . . . . . Robots Melted . | . . . . . Combat Hostiles . | . . . . . Parts Melted . | . . . . . Heat Transferred . | . . . . . Parts Sabotaged . | . . . . . Parts Stolen . | . . . . . Parts Stripped . | . . . . . Power Chain Reactions . | . . . . . Alert | -11 -10 -10 -7 -7 ------- Run | Yrd Mat Sub Rec Scr Peak Influence 50 | . . . 50 . Initial 50 | . . . 50 . Average 8 | . . . 50 . Maximum Alert Level . | . . . . . Low Security (%) 100 | 100 100 . 100 . Level 1 . | . . . . . Level 2 . | . . . . . Level 3 . | . . . . . Level 4 . | . . . . . Level 5 . | . . . . . High Security . | . . . . . Max Security . | . . . . . Squads Dispatched . | . . . . . Investigation . | . . . . . Extermination . | . . . . . Reinforcement . | . . . . . Assault . | . . . . . Garrison . | . . . . . Intercept . | . . . . . Searches Triggered . | . . . . . Construction Impeded . | . . . . . Haulers Reinforced . | . . . . . Active Scanning Responses . | . . . . . Cargo Convoy Interrupts . | . . . . . Stealth | -11 -10 -10 -7 -7 --------- Run | Yrd Mat Sub Rec Scr Distress Signals . | . . . . . Communications Jammed . | . . . . . Distress Signals . | . . . . . Times Spotted 15 | . . 10 . 5 Peak Tracking Total 6 | . . 3 . 6 Tactical Retreats 1 | . . 1 . . Traps | -11 -10 -10 -7 -7 ------- Run | Yrd Mat Sub Rec Scr Traps Triggered . | . . . . . Indirectly . | . . . . . Trap Hack Attempts . | . . . . . Triggered . | . . . . . Disarmed . | . . . . . Reprogrammed . | . . . . . Reused . | . . . . . Traps Extracted . | . . . . . Installed . | . . . . . Triggered . | . . . . . Machines | -11 -10 -10 -7 -7 ---------- Run | Yrd Mat Sub Rec Scr Machines Disabled 1 | . . . . 1 Max in Single Turn 1 | . . . . 1 Machines Repaired . | . . . . . Machines Dismantled 1 | . . . . 1 Machines Sabotaged . | . . . . . Overloaded Fab Kills . | . . . . . Hacking | -11 -10 -10 -7 -7 --------- Run | Yrd Mat Sub Rec Scr Machines Accessed 7 | . . . 2 5 Terminals . | . . . . . Fabricators . | . . . . . Repair Stations . | . . . . . Recycling Units . | . . . . . Scanalyzers . | . . . . . Garrison Access . | . . . . . Total Hacks 51 | . . . 25 26 Successful 51 | . . . 25 26 Failed . | . . . . . Catastrophic . | . . . . . Database Lockouts . | . . . . . Manual . | . . . . . Terminals . | . . . . . Fabricators . | . . . . . Repair Stations . | . . . . . Recycling Units . | . . . . . Scanalyzers . | . . . . . Garrison Access . | . . . . . Terminal Hacks 51 | . . . 25 26 Record 46 | . . . 24 22 Robot Analysis 4 | . . . . 4 Release Object 1 | . . . 1 . Fabricator Hacks . | . . . . . Repair Station Hacks . | . . . . . Recycling Unit Hacks . | . . . . . Scanalyzer . | . . . . . Garrison Access Hacks . | . . . . . Unauthorized Hacks . | . . . . . Terminals . | . . . . . Fabricators . | . . . . . Repair Stations . | . . . . . Recycling Units . | . . . . . Scanalyzers . | . . . . . Garrison Access . | . . . . . Data Cores Recovered . | . . . . . Used . | . . . . . Hacking Detections . | . . . . . Full Trace Events . | . . . . . Feedback Events . | . . . . . Feedback Blocked . | . . . . . Robot Schematics Acquired . | . . . . . Robots Built . | . . . . . Authchips . | . . . . . Time . | . . . . . Total Robot Build Rating . | . . . . . Part Schematics Acquired . | . . . . . Parts Built . | . . . . . Authchips . | . . . . . Time . | . . . . . Total Part Build Rating . | . . . . . Parts Repaired . | . . . . . Time . | . . . . . Parts Recycled . | . . . . . Recycled Matter . | . . . . . Retrieved Matter . | . . . . . Retrieved Components . | . . . . . Parts Scanalyzed . | . . . . . Part Schematics Acquired . | . . . . . Parts Damaged . | . . . . . Bothacking | -11 -10 -10 -7 -7 ------------ Run | Yrd Mat Sub Rec Scr Used RIF Installer . | . . . . . Robots Hacked . | . . . . . Non-combat . | . . . . . Combat . | . . . . . Robot Hacks Applied . | . . . . . Relay Couplers Released . | . . . . . Fabnet Peak Effective % . | . . . . . Robots Rewired . | . . . . . Allies Hacked . | . . . . . Hacks Repelled . | . . . . . Allies | -11 -10 -10 -7 -7 -------- Run | Yrd Mat Sub Rec Scr Total Allies . | . . . . . Largest Group . | . . . . . Highest-Rated Group . | . . . . . Highest-Rated Ally . | . . . . . Total Orders . | . . . . . Ally Attacks . | . . . . . Total Damage . | . . . . . Kills . | . . . . . Allies Corrupted . | . . . . . Allies Melted . | . . . . . Intel | -11 -10 -10 -7 -7 ------- Run | Yrd Mat Sub Rec Scr Robot Analysis Total 4 | . . . . 4 Derelict Logs Recovered 1 | . . . . 1 Drone Launches . | . . . . . Drone Recoveries . | . . . . . Exploration | -11 -10 -10 -7 -7 ------------- Run | Yrd Mat Sub Rec Scr Turns Passed 5681 | 78 1267 592 294 3450 Spaces Moved 2679 | 44 68 288 182 2097 Core 2 | 2 . . . . Treads 2677 | 42 68 288 182 2097 Legs . | . . . . . Wheels . | . . . . . Hover . | . . . . . Flight . | . . . . . Fastest Speed 50 | 50 160 160 160 160 Average Speed 161 | 155 160 160 160 161 Slowest Speed 165 | 160 160 160 160 165 Overloaded Moves . | . . . . . Propulsion Burnouts . | . . . . . Robots Hopped . | . . . . . Cave-ins Triggered . | . . . . . Exploration Rate (%) 37 | 4 16 27 46 92 Regions Visited 4 Branch Regions 3 Pre-discovered Areas 1 | . . 1 . . Known Exits Taken . | . . . . . Unknown Exits Taken 4 | 1 1 1 1 . Scrap Searched 1 | . . . . 1 Spaces Dug . | . . . . . Terrain Destroyed . | . . . . . Melee . | . . . . . Projectile . | . . . . . AOE . | . . . . . Terrain Rammed . | . . . . . Walls Destroyed . | . . . . . Machines Disabled . | . . . . . Actions | -11 -10 -10 -7 -7 --------- Run | Yrd Mat Sub Rec Scr Total 3958 | 51 1226 360 187 2134 Wait 1196 | . 1157 32 . 7 Move 2675 | 43 67 287 181 2097 Hop . | . . . . . Pick Up 11 | 2 1 3 2 3 Fast Attach 6 | 6 . . . . Attach 2 | . 1 1 . . Detach . | . . . . . Swap 12 | . . 5 . 7 Drop 10 | . . 1 2 7 Fire 37 | . . 31 . 6 Melee . | . . . . . Ram . | . . . . . Kick . | . . . . . Crush 1 | . . . . 1 Escape Stasis . | . . . . . Rewire 2 | . . . 2 . Trap . | . . . . . Miscellaneous 6 | . . . . 6 Route ------- -11/Scrapyard -10/Materials -10/Subcaves -7/Recycling -7/Scraptown (discovered 2 exits: [*Fac x2]) History --------- Turn | Location | Event 9 | -11/Scrapyard | Discovered new exit (range 16) 79 | -11/Scrapyard | Entered Materials 316 | -10/Materials | Build established: Mutant 1309 | -10/Materials | Discovered new exit (range 10) 1346 | -10/Materials | Entered Subcaves 1493 | -10/Subcaves | Learned location of Zion (-7) 1493 | -10/Subcaves | Met a Zionite searching for "candidates" 1740 | -10/Subcaves | Ambushed by Subdwellers from Twisted Machinery 1815 | -10/Subcaves | A swath of the cavern ceiling suddenly collapsed 1874 | -10/Subcaves | Shifting Twisted Machinery released Mak. Light Armor Plating 1882 | -10/Subcaves | Discovered new exit (range 15) 1938 | -10/Subcaves | Entered Recycling 1939 | -7/Recycling | Met a Zionite searching for Scraptown 2173 | -7/Recycling | Scanned before Scraplab entrance 2197 | -7/Recycling | Entered Scraplab 2216 | -7/Recycling | Discovered new exit (range 3) 2232 | -7/Recycling | Entered Scraptown 2501 | -7/Scraptown | Visited UFD Registry 2501 | -7/Scraptown | Registered with UFD as "Alphatank" 2557 | -7/Scraptown | Visited Research Penetration Think Tank 2597 | -7/Scraptown | Visited A0-MCA Data Center 2607 | -7/Scraptown | Given an A- rating by A0-MCA 2614 | -7/Scraptown | Found A0-MCA's Component Scanner 2648 | -7/Scraptown | Visited Scrap Suit Storage 2831 | -7/Scraptown | Discovered new exit (range 3) 2889 | -7/Scraptown | Visited LU-1G1's Boring Crew 2958 | -7/Scraptown | Visited Scrapoid Pod Storage 3138 | -7/Scraptown | Visited Supply Room 3966 | -7/Scraptown | Visited Derelict Rescue Squad 3989 | -7/Scraptown | Found DRS Beacon 4020 | -7/Scraptown | Visited Analyses Database 4102 | -7/Scraptown | Visited Cyclists 4124 | -7/Scraptown | Entered Cyclist Reading Room 4171 | -7/Scraptown | Visited Awakened 4252 | -7/Scraptown | Discovered new exit (range 3) 4319 | -7/Scraptown | Scanned Subdweller tech in exchange for log data 4324 | -7/Scraptown | Learned Research emergency access door positions 4793 | -7/Scraptown | Visited TADAMA 4826 | -7/Scraptown | Visited Assassins FH 4877 | -7/Scraptown | Visited Comm Corps 5034 | -7/Scraptown | Visited Bundlers 5047 | -7/Scraptown | Visited Junk Repository 5212 | -7/Scraptown | Visited Observation Area 5641 | -7/Scraptown | Attacked by Scraptown defenders 5682 | -7/Scraptown | Self-destructed Last Messages --------------- else has easy access to that intel. That's where we come in. 05034_ LOCAL NARROWCAST: Bundlers. Scrap saves lives. 05047_ LOCAL NARROWCAST: Repository. 05212_ LOCAL NARROWCAST: Observation Area. 05255_ LOCAL NARROWCAST: No unsupervised viewing. 05377_ Dropped Ion Engine. 05380_ Acquired Plasma Cutter. 05418_ Dismantling Machine with Plasma Cutter. 05632_ Dismantling Enclosure with Plasma Cutter. 05641_ Enclosure dismantled. 05641_ ANNOUNCEMENT: Intruder alert! Defend Scraptown! 05677_ Slammed into RC-QQL(x). 05681_ Plasma Cutter destroyed. 05681_ Penetrated by Slug. Map ----- +----------------------------------------------------+ | ?????????????????????????????????????????????????? | | ?????????????????????????????????????????????????? | | ?????????????????????????????????????????????????? | | ?????????????????????????????????#####???????????? | | ?????????????????????????????????#"""#???????????? | | ??###################???####?????#" "#???????????? | | ?#"""##"""##""|##"""#??## ##????# < #???????????? | | ?#"" ##"" ##"" ##!!"#### ###### ##??????????? | | ?#"" ! #??????????? | | ?# #??????????? | | ?####################### ###########??????????? | | ???????????????????????## ##????????????????????? | | ????????????????????????# #?????????????????????? | | ???########??#######????# ############??????????? | | ?#"""""""""#?#"! "????# ## # # #??????????? | | ?#"""""""""#?#" "#????# ## # "" # #??????????? | | ##"""""""""#?## X####?# E## # "# # #??????????? | | "#"""""""""#?#"! "#?#E ## # "" # #??????????? | | "#""" *"""#?#"! !"#?# ## #??????????? | | "#""" """#?#" "#?# ## ####### #??????????? | | "#""" "!"#?#"! !"#?# ## # # #??????????? | | #"""" """#?#" "#?# ## # # #??????????? | | "#""" """#?## ##?# ## # # #??????????? | | #" #?# #?#E ## #??????????? | | ####### ####?###### ###?# E## #########??????????? | | ####### ########### #####@ ## #########??????????? | | """"""" """"""""""" """""x "" "##"""" #??????????? | | t "## "#??????????? | | "## "#??????????? | | "## !"#??????????? | | "## "#??????????? | | "#??????????? | | """"""""""""""""""""""""" "## "#??????????? | | """"""""""""""""""""""""" "##"""""#??????????? | | ##### ################"" "########??????????? | | ##????????#"" "#########?????????? | | X"#????????#"" "##""""""#?????????? | | "" "" ##????????#"" "## ""*"#?????????? | | "" "" X"#??????###"" "## * *"#?????????? | | " " ######### #"" t "## !!#?????????? | | "" *!!#?????????? | | "" "## !! |#?????????? | | " " ######### #"" "## "!!|"#?????????? | | "" "" ""#??????###"" "##""""""#?????????? | | "" "" ##????????#"" "#########?????????? | | ""#????????#"" "#?? ???????????? | | ##????????#"" "#?? """ "????????? | | ##### ################"" "#?" "????????? | | """"""""""""""""""""""""" "##" "????????? | | """"""""""""""""""""""""" " " "??????????? | +----------------------------------------------------+ Best States ------------- Heat Dissipation 25 Energy Generation 15 Energy Capacity 250 Matter Stores 300 Matter Capacity 300 Sight Range 21 Terrain Scan Density 10 Weapon Shielding 33 Evasion (%) 40 Recoil Reduction 2 Item Schematics ----------------- None Robot Schematics ------------------ None Fabricated ------------ Nothing Alien Tech Used ----------------- None Achievements -------------- Armchair Analyst Challenges ------------ None Game ------ Seed CommAngularLance Manual? 0 Play Time 00:31:10 Cumulative 23.2 hours Start 2024.12.12 @ 12:27:42 End 2024.12.12 @ 13:14:37 Sessions 3 Manual Loads 0 Difficulty Rogue Special Mode None Game No. 32 Rogue 32 Adventurer 0 Explorer 0 Win Type - Total 0 Types 0/0/0/0/0/0/0/0/0 Lore% 22 Gallery% 23 Achievement% 20 Wizard Run 0 Options --------- Layout 1 ASCII 0 Keyboard 1 Movement Numpad Keybinds 0 Fullscreen 1 Font 24/Terminus Map View 50x35 Zoom Use 0% Tactical HUD 1 Map Filters NONE Filters NONE Steam 1 RUN: 5ae1dd38-99a1-42cc-ba94-61b254e5b9d8